bitfinex-derivatives/quotes_ETHF0:USTF0_20250224
["timestamp","ask_amount","ask_price","bid_price","bid_amount"]
[1740429492078,3.2078,2662.0,2661.8,3.171]
[1740429492279,3.2078,2662.0,2661.9,0.75155]
[1740429493171,3.2078,2662.5,2662.3,0.75142]
[1740429493377,1.0818,2662.7,2662.3,3.171]
[1740429493584,3.2134373,2663.0,2662.3,3.171]
[1740429493976,0.0056373,2663.0,2662.5,3.2078]
[1740429494180,0.0056373,2663.0,2662.3,3.171]
[1740429494377,0.0056373,2663.0,2662.8,0.75127]
[1740429494685,0.0056373,2663.0,2662.7,3.171]
[1740429494879,0.7568873,2663.0,2662.7,3.9223]
[1740429495078,0.0056373,2663.0,2662.7,3.171]
[1740429495579,0.75127,2662.9,2662.7,3.171]
[1740429495784,0.0056373,2663.0,2662.7,3.171]
[1740429495979,0.75128,2662.9,2662.7,3.171]
[1740429496181,0.0056373,2663.0,2662.7,3.171]
[1740429496579,0.0056373,2663.0,2662.0,3.7047]
[1740429496580,0.75149,2662.1,2662.0,3.7047]
[1740429496783,3.2078,2662.3,2661.7,6.3844373]
[1740429496977,3.171,2662.8,2661.9,0.75153]
[1740429496978,1.32278,2662.2,2661.9,0.75153]
[1740429497177,0.5713,2662.2,2661.7,6.3844373]
[1740429497381,1.32277,2662.2,2662.0,0.75151]
[1740429497682,0.5713,2662.2,2662.1,3.92249]
[1740429497984,3.7708,2662.6,2662.4,0.7514]
[1740429498186,3.7791,2662.6,2662.1,3.171]
[1740429498377,3.7791,2662.6,2662.4,0.7514]
[1740429498682,3.7791,2662.6,2662.1,3.7338]
[1740429498893,0.75142,2662.4,2662.1,4.48528]
[1740429499087,3.7791,2662.6,2662.1,3.7338]
[1740429499384,3.7791,2662.6,2662.2,0.75146]
[1740429499783,3.7791,2662.6,2662.1,3.7338]
[1740429500385,3.7791,2662.6,2662.2,0.75145]
[1740429500576,3.7791,2662.6,2662.1,3.7338]
[1740429500977,3.7791,2662.6,2662.4,0.7514]
[1740429501279,3.7791,2662.6,2662.1,3.7338]
[1740429501486,3.7791,2662.6,2662.4,0.75139]
[1740429502587,3.7791,2662.6,2662.5,0.75138]
[1740429502784,4.53045,2662.6,2662.4,0.7514]
[1740429503188,3.7791,2662.6,2662.4,0.7514]
[1740429503890,4.53046,2662.6,2662.4,0.7514]
[1740429504388,4.53046,2662.6,2662.1,4.8512]
[1740429504589,0.7514,2662.5,2662.2,0.75144]
[1740429504789,0.7514,2662.5,2662.1,4.8512]
[1740429505291,3.7791,2662.6,2662.1,4.8512]
[1740429505890,3.7791,2662.6,2662.1,0.5628]
[1740429506190,3.7791,2662.6,2662.1,3.7328]
[1740429506395,3.7791,2662.6,2661.7,24.0474373]
[1740429506591,3.2078,2662.0,2661.7,20.8396373]
[1740429506785,0.5868,2661.9,2661.7,0.0056373]
[1740429507491,1.33836,2661.9,2661.7,0.7572273]
[1740429508092,0.5868,2661.9,2661.8,0.75158]
[1740429510690,3.2078,2662.0,2661.9,0.75155]
[1740429511585,0.5912,2662.5,2661.9,0.75155]
[1740429511586,3.799,2662.5,2661.9,0.75155]
[1740429511791,0.75141,2662.4,2662.1,0.75147]
[1740429511992,3.799,2662.5,2662.0,0.5775]
[1740429512295,3.2078,2662.8,2662.1,3.17]
[1740429512488,5.08606,2662.8,2662.2,0.75145]
[1740429512689,0.7514,2662.5,2662.2,0.75145]
[1740429513197,3.2078,2662.8,2662.1,3.17]
[1740429515596,3.2078,2662.3,2662.0,0.5775]
[1740429515795,3.2078,2662.3,2661.9,3.169]
[1740429515994,0.5772,2662.2,2661.9,3.169]
[1740429516298,3.2078,2662.6,2661.9,3.169]
[1740429516299,2.957,2662.5,2661.9,6.3768]
[1740429516592,2.957,2662.5,2662.2,3.2078]
[1740429516795,2.957,2662.5,2662.3,3.7485]
[1740429519489,2.957,2662.5,2662.3,3.169]
[1740429519786,2.957,2662.5,2661.9,3.7883]
[1740429520189,2.957,2662.5,2662.0,3.169]
[1740429521797,4.1612,2662.6,2662.0,3.169]
[1740429523694,3.785,2662.6,2662.0,3.169]
[1740429524195,3.785,2662.6,2662.1,0.5462]
[1740429524398,3.785,2662.6,2662.2,3.2078]
[1740429524602,3.785,2662.6,2662.2,3.77]
[1740429526799,3.785,2662.6,2662.2,0.5622]
[1740429528296,3.785,2662.6,2662.1,0.5462]
[1740429533406,0.5772,2662.6,2662.1,0.5462]
[1740429536416,3.2078,2662.4,2661.9,3.7883]
[1740429536708,3.2078,2662.1,2661.7,0.0056373]
[1740429536910,0.5612,2662.0,2661.7,3.1726373]
[1740429538413,0.5881,2662.3,2661.7,3.1726373]
[1740429538613,1.1262,2662.3,2661.7,3.1726373]
[1740429538911,0.5381,2662.3,2661.9,3.2078]
[1740429540512,0.5381,2662.3,2661.7,3.1726373]
[1740429540708,0.5381,2662.3,2661.9,3.2078]
[1740429541316,3.2078,2662.7,2661.9,3.2078]
[1740429541518,3.2078,2662.7,2662.0,1.0939]
[1740429541722,3.2078,2662.7,2662.1,3.7043]
[1740429542210,3.2078,2662.7,2662.2,3.167]
[1740429543923,3.2078,2662.7,2662.2,6.3748]
[1740429544318,0.5381,2662.9,2662.5,3.2078]
[1740429544517,0.0056373,2663.0,2662.8,3.2078]
[1740429545317,3.2078,2664.1,2663.3,1.87788]
[1740429545622,0.9591,2664.2,2664.1,0.75093]
[1740429545822,0.9591,2664.2,2664.1,3.91793]
[1740429546014,0.5829,2664.2,2664.1,3.167]
[1740429546618,1.3338,2664.2,2664.1,3.167]
[1740429546820,0.5829,2664.2,2664.1,3.91793]
[1740429547021,0.5829,2664.2,2664.1,3.167]
[1740429548517,0.5829,2664.2,2663.9,0.5578373]
[1740429548713,3.7907,2664.2,2663.2,3.166]
[1740429549024,0.75121,2663.1,2663.0,3.76]
[1740429549224,0.75121,2663.1,2663.0,0.5522]
[1740429549725,0.5856,2663.4,2663.0,0.5522]
[1740429549925,0.75102,2663.8,2663.0,6.926]
[1740429550125,0.75102,2663.8,2663.1,2.45053]
[1740429550624,3.2078,2664.3,2663.9,0.75098]
[1740429550625,6.1648,2664.3,2663.9,0.75098]
[1740429550930,0.75093,2664.1,2664.0,3.165]
[1740429551123,0.75094,2664.1,2663.8,0.751]
[1740429551323,0.75094,2664.1,2663.9,3.165]
[1740429551526,0.75096,2664.0,2663.9,3.165]
[1740429551826,0.75101,2663.9,2663.4,0.5863]
[1740429552027,0.75097,2664.0,2663.7,0.75103]
[1740429552221,2.957,2664.2,2663.6,0.5449]
[1740429552421,0.75104,2663.7,2663.6,0.5449]
[1740429552822,3.95884,2663.7,2663.6,3.7099]
[1740429553022,0.75104,2663.7,2663.6,3.7099]
[1740429553225,0.75103,2663.8,2663.6,3.7099]
[1740429553423,0.75104,2663.7,2663.6,3.7099]
[1740429553729,0.75104,2663.8,2663.6,4.46096]
[1740429553927,1.3234,2663.9,2663.7,0.75103]
[1740429554127,0.5724,2663.9,2663.6,3.7099]
[1740429554524,0.5724,2663.9,2663.6,4.46096]
[1740429554723,0.75104,2663.7,2663.6,3.165]
[1740429554921,0.75103,2663.8,2663.4,3.165]
[1740429555130,0.5724,2663.9,2663.4,3.165]
[1740429555326,3.2078,2664.0,2663.9,0.75098]
[1740429555932,3.2078,2664.0,2663.9,1.31378]
[1740429556126,3.2078,2664.0,2663.9,0.5628]
[1740429556329,0.5615,2664.3,2663.9,0.5628]
[1740429556628,1.31238,2664.3,2663.9,0.5628]
[1740429556933,0.5615,2664.3,2664.2,0.7509]
[1740429557334,0.7564973,2664.4,2664.3,0.75087]
[1740429557335,0.0056373,2664.4,2664.3,0.75087]
[1740429558238,0.0056373,2664.4,2664.3,1.28957]
[1740429558424,0.0056373,2664.4,2664.3,0.5387]
[1740429558738,0.7564973,2664.4,2664.2,3.9149]
[1740429559029,0.7564973,2664.4,2664.2,3.164]
[1740429559535,0.7565073,2664.4,2664.2,3.164]
[1740429559738,0.0056373,2664.4,2664.2,3.164]
[1740429559930,0.0056373,2664.4,2664.0,0.5387]
[1740429560330,0.0056373,2664.4,2663.9,3.7268]
[1740429560331,3.2078,2664.2,2663.9,3.7268]
[1740429560639,0.5692,2664.3,2663.9,3.7268]
[1740429561031,0.75092,2664.2,2664.0,0.75096]
[1740429561231,0.75094,2664.1,2663.9,3.7268]
[1740429561435,0.7509,2664.2,2664.0,0.75096]
[1740429561633,0.5692,2664.3,2664.0,0.75096]
[1740429561835,0.75092,2664.2,2664.0,0.75096]
[1740429562030,3.2134373,2664.4,2664.2,0.7509]
[1740429562245,3.9642773,2664.4,2664.3,0.75087]
[1740429562433,3.2134373,2664.4,2664.3,3.91487]
[1740429562633,0.0056373,2664.4,2664.3,3.164]
[1740429562941,0.0056373,2664.4,2663.9,5.64803]
[1740429562942,0.75089,2664.3,2664.1,0.75092]
[1740429563140,0.7564973,2664.4,2664.2,3.91488]
[1740429563740,0.75087,2664.3,2664.2,3.164]
[1740429564239,0.75087,2664.3,2664.2,3.9149]
[1740429564435,0.75087,2664.3,2664.2,3.164]
[1740429565046,0.0056373,2664.4,2664.0,0.75094]
[1740429565047,0.7509,2664.2,2664.1,3.163]
[1740429565236,0.0056373,2664.4,2664.1,3.163]
[1740429565635,3.2134373,2664.4,2664.1,3.163]
[1740429565941,6.5466373,2664.4,2663.9,0.5628]
[1740429566140,0.5689,2664.3,2663.9,0.5628]
[1740429566340,3.2078,2664.1,2663.9,0.5628]
[1740429566941,3.2078,2664.1,2663.8,23.987]
[1740429571249,3.2078,2664.1,2663.9,0.5479]
[1740429571642,3.2078,2664.1,2663.9,1.0989]
[1740429574057,3.2078,2664.1,2663.9,0.5479]
[1740429574765,0.3762,2663.9,2662.8,3.51762911]
[1740429575062,3.2078,2663.5,2662.9,0.5338]
[1740429575256,1.87782,2663.4,2662.9,0.5338]
[1740429575449,3.2078,2663.5,2662.9,0.5338]
[1740429575650,1.87775,2663.5,2663.0,0.75122]
[1740429575856,5.08557,2663.5,2663.0,0.75123]
[1740429576152,0.7512,2663.2,2663.1,0.75121]
[1740429576354,0.75117,2663.3,2662.9,3.6958]
[1740429576560,0.75117,2663.3,2663.2,0.75118]
[1740429576759,0.75117,2663.3,2663.1,0.75119]
[1740429577056,3.95891,2663.5,2663.4,0.75113]
[1740429577256,3.2078,2663.5,2663.4,0.75113]
[1740429578160,3.2078,2663.5,2663.1,5.08581]
[1740429578161,3.2078,2663.5,2663.1,3.2078]
[1740429578356,3.2078,2663.5,2662.9,0.5338]
[1740429578357,0.75113,2663.4,2663.3,3.162]
[1740429580765,0.75113,2663.4,2663.3,3.91314]
[1740429581765,0.75113,2663.4,2663.3,3.162]
[1740429582165,3.2078,2663.5,2663.3,3.162]
[1740429582461,3.2078,2663.5,2662.9,0.5338]
[1740429582660,3.2078,2663.5,2663.1,3.162]
[1740429584365,3.2078,2663.5,2663.1,6.3698]
[1740429584553,3.2078,2663.5,2663.1,3.162]
[1740429587562,3.2078,2663.5,2663.1,6.3698]
[1740429587966,0.5632,2664.0,2663.1,6.3698]
[1740429588166,2.957,2664.0,2663.4,3.2078]
[1740429588370,2.957,2664.0,2663.5,4.917]
[1740429589070,3.2078,2664.1,2663.5,4.917]
[1740429590170,3.95874,2664.1,2663.5,6.7947]
[1740429590764,3.95874,2664.1,2663.9,0.75098]
[1740429590963,3.95874,2664.1,2663.9,3.91298]
[1740429591271,0.75096,2664.0,2663.9,3.162]
[1740429592666,0.75107,2663.6,2663.5,1.755]
[1740429592862,0.75095,2664.1,2663.8,0.75099]
[1740429593068,3.2078,2664.2,2663.8,0.75099]
[1740429593375,3.2078,2664.2,2663.5,4.917]
[1740429598169,3.2078,2664.2,2663.5,1.755]
[1740429598374,3.2078,2663.6,2662.7,3.2078]
[1740429598571,3.2078,2663.0,2662.9,0.5575]
[1740429598877,3.2078,2663.0,2662.8,0.0056373]
[1740429599176,0.75127,2662.9,2662.8,0.0056373]
[1740429599476,0.5902,2662.9,2662.8,0.7569273]
[1740429600282,6.1648,2663.4,2662.8,0.7569273]
[1740429600578,0.75122,2663.1,2662.9,0.75124]
[1740429600779,6.755,2663.4,2662.8,0.0056373]
[1740429600979,6.755,2663.4,2662.9,0.75124]
[1740429601178,6.755,2663.4,2662.8,0.0056373]
[1740429601179,8.63284,2663.4,2662.8,0.0056373]
[1740429601374,0.75125,2663.0,2662.8,0.0056373]
[1740429601575,0.75127,2662.9,2662.8,3.1666373]
[1740429601775,1.34147,2662.9,2662.8,3.1666373]
[1740429601970,1.34147,2662.9,2662.8,0.0056373]
[1740429602584,0.5902,2662.9,2662.8,0.7569273]
[1740429602977,3.2078,2663.4,2663.0,0.75122]
[1740429603176,0.75118,2663.2,2663.0,0.75122]
[1740429603879,0.75125,2663.0,2662.8,3.9647273]
[1740429604189,0.5394,2663.3,2662.8,0.7569273]
[1740429604386,0.75123,2663.1,2662.8,0.7569273]
[1740429604573,0.5394,2663.3,2662.8,0.0056373]
[1740429604775,0.75127,2662.9,2662.8,0.0056373]
[1740429605581,3.2078,2663.0,2662.8,0.0056373]
[1740429606083,0.75127,2662.9,2662.8,0.0056373]
[1740429606272,3.95905,2663.0,2662.8,0.7569173]
[1740429606593,0.3762,2663.2,2663.0,0.75122]
[1740429606882,3.7472,2663.3,2662.8,0.0056373]
[1740429607081,3.2078,2663.8,2662.8,3.2134373]
[1740429607277,0.5519,2663.7,2662.8,3.2134373]
[1740429607479,0.5519,2663.7,2662.9,0.5477]
[1740429607781,0.5519,2663.7,2663.0,34.8693]
[1740429608083,0.5519,2663.7,2663.1,6.3688]
[1740429608271,1.30295,2663.7,2663.2,1.87796]
[1740429608472,1.30295,2663.7,2663.4,0.7511]
[1740429608676,0.5519,2663.7,2663.6,0.75107]
[1740429608879,0.5519,2663.7,2663.5,0.75108]
[1740429609077,3.2078,2663.8,2663.5,3.16]
[1740429609282,0.75097,2664.0,2663.6,0.5892]
[1740429609283,0.5784,2664.0,2663.6,0.5892]
[1740429609480,0.5784,2664.0,2663.9,0.75098]
[1740429609685,0.5784,2664.0,2663.9,3.16]
[1740429610489,1.32936,2664.0,2663.9,3.16]
[1740429610682,0.5784,2664.0,2663.9,3.16]
[1740429610986,0.5784,2664.0,2663.9,3.91098]
[1740429611282,0.5784,2664.0,2663.9,3.16]
[1740429611482,1.32936,2664.0,2663.9,3.16]
[1740429611783,1.32936,2664.0,2663.0,36.15727]
[1740429611784,0.75121,2663.1,2663.0,0.5792]
[1740429612088,3.95901,2663.1,2663.0,3.16]
[1740429612287,3.2078,2663.1,2662.5,1.1252]
[1740429612489,0.75127,2662.9,2662.6,3.16]
[1740429612677,0.75127,2662.9,2662.3,0.5867]
[1740429612883,0.3762,2662.8,2662.0,3.16]
[1740429613085,0.75149,2662.1,2662.0,3.16]
[1740429613285,3.2078,2662.4,2662.0,3.16]
[1740429613589,0.5718,2662.3,2662.2,0.75146]
[1740429614791,0.5718,2662.3,2662.0,3.1656373]
[1740429615193,0.5718,2662.3,2662.2,0.75146]
[1740429615490,0.5718,2662.3,2662.1,0.75148]
[1740429615691,0.5718,2662.3,2662.0,3.1656373]
[1740429615893,3.2078,2662.4,2662.2,0.75144]
[1740429616193,3.2078,2662.4,2662.3,0.75144]
[1740429617492,0.0056373,2662.5,2662.4,0.75141]
[1740429617880,0.0056373,2662.5,2662.2,3.2078]
[1740429618086,0.0056373,2662.5,2662.4,0.75141]
[1740429618284,0.0056373,2662.5,2662.3,0.75141]
[1740429618692,0.0056373,2662.5,2662.4,0.75141]
[1740429619391,0.0056373,2662.5,2662.2,3.2078]
[1740429619598,0.75142,2662.4,2662.1,1.32327]
[1740429619890,0.75142,2662.4,2662.2,0.75146]
[1740429620191,0.75149,2662.1,2662.0,0.0056373]
[1740429620390,0.75163,2661.6,2661.5,3.16]
[1740429620595,0.75162,2661.7,2661.5,3.16]
[1740429620795,3.95939,2661.8,2661.5,3.91166]
[1740429620993,0.5847,2662.0,2661.5,3.16]
[1740429621190,1.33623,2662.0,2661.5,6.3678]
[1740429621396,0.5847,2662.0,2661.8,0.75157]
[1740429621591,0.5847,2662.0,2661.9,0.75155]
[1740429621795,0.5847,2662.0,2661.9,3.91155]
[1740429622091,3.2078,2662.2,2662.1,0.75149]
[1740429622287,0.0056373,2662.5,2662.4,0.75141]
[1740429622489,0.0056373,2662.5,2662.4,3.91141]
[1740429622790,0.0056373,2662.5,2662.4,7.11921]
[1740429623094,3.2078,2663.4,2662.4,6.3678]
[1740429623393,1.33586,2663.3,2662.5,35.57844]
[1740429623696,0.5847,2663.3,2663.1,0.75119]
[1740429623894,0.5847,2663.3,2663.1,3.16]
[1740429624290,0.75118,2663.2,2663.1,3.16]
[1740429624487,0.5847,2663.3,2662.9,0.0056373]
[1740429624785,3.2078,2663.1,2662.9,0.7568973]
[1740429625395,3.2078,2663.1,2662.9,0.0056373]
[1740429625587,3.2078,2663.1,2663.0,0.75124]
[1740429625895,3.2078,2663.1,2662.9,0.7568873]
[1740429626097,3.2078,2663.1,2663.0,0.75124]
[1740429626398,3.2078,2663.1,2662.9,1.0900373]
[1740429626599,3.2078,2663.1,2662.9,1.8412973]
[1740429626894,3.2078,2663.1,2662.9,1.0900373]
[1740429627197,3.95902,2663.1,2662.9,0.5381373]
[1740429627392,3.2078,2663.1,2662.9,0.5381373]
[1740429627695,3.5417,2663.3,2662.9,0.5381373]
[1740429627890,0.75124,2663.0,2662.9,0.5381373]
[1740429628892,0.75124,2663.0,2662.9,0.0056373]
[1740429630296,3.95901,2663.2,2663.0,0.75122]
[1740429631190,3.2078,2663.2,2662.9,0.0056373]
[1740429631390,3.2078,2663.2,2662.9,0.7568873]
[1740429631798,0.75122,2663.1,2662.9,0.0056373]
[1740429632096,3.2078,2663.2,2663.0,3.159]
[1740429632393,3.2078,2663.2,2663.1,1.28861]
[1740429632793,0.7567473,2663.5,2663.1,1.28861]
[1740429632794,0.0056373,2663.5,2663.1,0.5374]
[1740429633000,0.7567573,2663.5,2663.1,0.5374]
[1740429633197,0.7567573,2663.5,2663.3,0.75115]
[1740429633391,0.0056373,2663.5,2663.1,0.5374]
[1740429633597,0.0056373,2663.5,2663.4,0.75113]
[1740429633898,0.0056373,2663.5,2663.4,3.159]
[1740429634500,3.9645373,2663.5,2663.4,3.159]
[1740429634795,3.5896373,2663.5,2662.9,0.0056373]
[1740429634999,0.75124,2663.0,2662.9,0.0056373]
[1740429635189,3.2078,2663.2,2662.9,0.0056373]
[1740429635392,0.75124,2663.0,2662.9,0.0056373]
[1740429635891,0.75124,2663.0,2662.9,0.7569073]
[1740429636093,3.2078,2663.2,2662.9,0.0056373]
[1740429636994,0.3762,2663.1,2662.4,0.0108]
[1740429637199,0.75138,2662.5,2662.4,0.0108]
[1740429637705,3.2078,2662.6,2662.4,0.76221]
[1740429637904,3.2078,2662.6,2662.4,0.0108]
[1740429638198,0.75138,2662.5,2662.4,0.0108]
[1740429638407,3.95916,2662.6,2662.4,0.76219]
[1740429638701,0.75138,2662.5,2662.4,0.76219]
[1740429638909,3.95917,2662.6,2662.4,0.76219]
[1740429639095,0.75138,2662.5,2662.4,0.0108]
[1740429640104,0.75138,2662.5,2662.4,0.76221]
[1740429640401,0.75138,2662.5,2662.4,0.0108]
[1740429640605,3.2078,2662.6,2662.4,0.0108]
[1740429640805,3.2078,2662.6,2662.4,0.76219]
[1740429641107,2.957,2662.7,2662.6,0.75135]
[1740429641308,2.957,2662.7,2662.4,0.0108]
[1740429641507,2.957,2662.7,2662.4,0.76219]
[1740429641806,0.75138,2662.5,2662.4,0.0108]
[1740429643906,0.5464,2662.6,2662.5,0.75138]
[1740429644801,0.75138,2662.5,2662.4,0.0108]
[1740429645007,3.95918,2662.5,2662.4,0.0108]
[1740429646705,1.29776,2662.6,2662.4,0.76221]
[1740429646906,0.5464,2662.6,2662.5,0.75138]
[1740429647416,0.5464,2662.6,2662.4,0.0108]
[1740429647714,1.29777,2662.6,2662.4,0.7622]
[1740429648212,0.5464,2662.6,2662.4,0.0108]
[1740429648414,0.5464,2662.6,2662.4,0.76219]
[1740429648715,0.75138,2662.5,2662.4,0.0108]
[1740429649216,3.95918,2662.5,2662.4,0.0108]
[1740429650115,3.2078,2662.5,2662.4,0.0108]
[1740429652313,6.1648,2662.5,2662.4,0.0108]
[1740429652911,2.957,2662.5,2662.4,0.0108]
[1740429654114,6.541,2662.5,2662.4,0.0108]
[1740429654420,6.1648,2662.5,2662.4,0.0108]
[1740429654913,12.7495,2662.5,2662.4,0.0108]
[1740429655114,13.7123,2662.5,2662.2,0.0056373]
[1740429655316,7.7123,2662.5,2662.2,0.0056373]
[1740429657013,6.7495,2662.5,2662.2,0.0056373]
[1740429658333,3.7925,2662.5,2662.2,0.0056373]
[1740429661920,3.584,2662.8,2662.2,0.0056373]
[1740429662121,3.7713,2662.8,2662.3,3.157]
[1740429662326,3.7713,2662.8,2662.4,1.1057]
[1740429665829,3.2078,2662.5,2662.2,0.0056373]
[1740429667122,6.1648,2662.5,2662.2,0.0056373]
[1740429668128,6.1648,2662.5,2662.2,0.5929373]
[1740429670226,6.1648,2662.5,2662.2,0.0056373]
[1740429670835,0.5415,2662.4,2662.2,0.0056373]
[1740429671229,0.5647,2662.3,2662.2,0.0056373]
[1740429671837,6.1648,2662.5,2662.2,0.0056373]
[1740429672226,6.1648,2662.5,2662.2,1.1376373]
[1740429673231,3.2078,2662.5,2662.2,1.1376373]
[1740429673738,3.2078,2662.5,2662.2,4.2936373]
[1740429677338,2.957,2662.7,2662.2,4.2936373]
[1740429677642,2.957,2663.4,2662.4,3.2078]
[1740429677933,0.64257444,2663.4,2662.4,3.2078]
[1740429678141,3.2134373,2663.5,2662.7,3.2078]
[1740429678438,3.2134373,2663.5,2663.4,0.7512]
[1740429678733,0.0056373,2663.5,2663.4,0.7512]
[1740429678934,3.2078,2663.9,2663.8,0.75109]
[1740429679436,0.75099,2664.2,2663.9,0.75105]
[1740429679645,2.957,2664.2,2663.7,3.156]
[1740429679942,2.9626373,2664.2,2663.9,0.75104]
[1740429680136,3.7136273,2664.2,2663.7,3.1616373]
[1740429680332,2.9626373,2664.2,2664.0,0.75102]
[1740429681039,2.9626373,2664.2,2664.1,0.751]
[1740429681342,0.75103,2664.1,2663.8,0.75108]
[1740429681541,3.2078,2664.0,2663.7,3.1616373]
[1740429681738,3.2078,2664.0,2663.9,0.75106]
[1740429683937,3.2078,2664.0,2663.9,3.90606]
[1740429684438,0.0056373,2664.2,2663.9,3.155]
[1740429684743,0.0056373,2664.2,2664.1,0.751]
[1740429685840,0.0056373,2664.2,2664.0,1.1133]
[1740429686035,0.0056373,2664.2,2664.1,0.751]
[1740429686634,0.0056373,2664.2,2664.0,0.5332]
[1740429686833,0.0056373,2664.2,2663.7,0.0056373]
[1740429686834,0.75109,2663.8,2663.7,3.1596373]
[1740429687034,3.95889,2663.8,2663.7,0.0056373]
[1740429687340,3.95889,2663.8,2663.7,7.3e-06]
[1740429687842,0.75134,2662.9,2662.8,3.6872]
[1740429688143,0.75134,2662.9,2662.5,23.987]
[1740429688144,3.2078,2662.9,2662.5,23.987]
[1740429688345,3.2078,2662.9,2662.5,24.73845]
[1740429688346,0.75138,2662.8,2662.5,24.73845]
[1740429688537,0.75139,2662.8,2662.5,23.987]
[1740429688739,3.2078,2662.9,2662.8,0.75137]
[1740429689347,3.2078,2663.5,2662.8,1.87836]
[1740429689639,3.2078,2663.5,2662.9,3.7372]
[1740429689836,3.2078,2663.5,2663.4,0.7512]
[1740429690032,3.2078,2663.5,2663.0,1.1219]
[1740429690244,3.2078,2663.2,2663.1,3.90528]
[1740429690638,3.95906,2663.2,2663.1,3.154]
[1740429690839,3.2078,2663.2,2662.4,0.0056373]
[1740429691033,3.2078,2662.9,2662.5,20.833]
[1740429691244,3.2078,2662.6,2662.4,0.0056373]
[1740429691544,3.2078,2662.9,2662.4,0.0056373]
[1740429691735,0.0056373,2662.8,2662.6,0.7514]
[1740429691941,0.0056373,2662.8,2662.5,3.154]
[1740429692242,0.0056373,2662.8,2662.7,0.7514]
[1740429693950,0.0056373,2662.8,2662.7,1.3382]
[1740429694145,0.5861,2663.5,2663.4,0.7512]
[1740429694449,3.2078,2663.7,2663.6,0.75114]
[1740429694745,3.2078,2664.2,2664.1,0.75098]
[1740429694937,3.2078,2664.2,2663.6,0.75114]
[1740429694938,3.2078,2664.2,2664.0,3.154]
[1740429695143,3.9588,2664.2,2664.0,3.154]
[1740429695346,3.95877,2664.2,2664.0,3.154]
[1740429695642,3.2078,2664.2,2664.0,3.90502]
[1740429695843,3.2078,2664.2,2664.0,3.154]
[1740429696044,3.2078,2664.2,2664.1,0.751]
[1740429696239,3.2078,2664.2,2664.0,3.154]
[1740429696446,3.2078,2664.2,2664.1,0.751]
[1740429696641,3.2078,2664.2,2664.0,3.154]
[1740429697044,0.5766,2664.3,2664.2,0.75097]
[1740429697248,0.5766,2664.3,2664.0,3.154]
[1740429697445,0.5766,2664.3,2664.1,0.75098]
[1740429697844,1.32755,2664.3,2664.0,3.90502]
[1740429698053,3.2078,2664.2,2664.0,3.90502]
[1740429698252,3.2078,2664.2,2664.0,3.154]
[1740429698451,0.751,2664.1,2664.0,3.154]
[1740429698647,3.2078,2664.2,2663.9,3.153]
[1740429699053,0.75103,2664.0,2663.9,3.153]
[1740429699353,3.2078,2664.2,2663.8,0.0056373]
[1740429699652,3.95886,2663.9,2663.8,3.1586373]
[1740429700651,3.95886,2663.9,2663.8,3.1586373]
[1740429702453,3.95886,2663.9,2663.8,0.0056373]
[1740429702654,3.95886,2663.9,2663.3,3.153]
[1740429702655,3.2078,2663.9,2663.3,3.153]
[1740429702854,3.153,2664.2,2663.3,3.153]
[1740429702855,3.959,2663.4,2663.3,3.153]
[1740429703043,3.2078,2663.4,2663.3,3.90423]
[1740429703556,3.959,2663.4,2663.3,3.153]
[1740429704250,3.959,2663.4,2663.3,3.90423]
[1740429704458,3.2078,2663.4,2663.3,3.90423]
[1740429705262,3.7586,2663.8,2663.3,3.90423]
[1740429705459,3.7586,2663.8,2663.7,0.75112]
[1740429706157,3.2078,2663.8,2663.7,3.90312]
[1740429706658,3.2078,2664.3,2663.8,1.87773]
[1740429706861,3.2078,2664.3,2664.2,0.75097]
[1740429707057,3.2078,2664.3,2664.2,3.90297]
[1740429708068,3.2078,2664.3,2663.6,1.1509]
[1740429708363,3.2078,2664.0,2663.7,3.152]
[1740429708962,3.95885,2664.0,2663.7,3.152]
[1740429709262,3.2078,2664.0,2663.9,0.75106]
[1740429709657,3.2078,2664.3,2664.2,0.75097]
[1740429711063,3.2078,2664.3,2664.1,3.152]
[1740429711260,3.95875,2664.3,2664.1,3.90299]
[1740429711460,3.2078,2664.3,2664.1,3.152]
[1740429711865,0.75097,2664.2,2664.1,3.152]
[1740429712962,3.2078,2664.3,2664.1,3.90298]
[1740429713158,3.2078,2664.3,2664.0,3.151]
[1740429713358,0.5684,2664.2,2664.0,3.151]
[1740429714063,3.2078,2664.3,2664.0,3.151]
[1740429715163,3.584,2664.3,2663.6,0.5791]
[1740429715355,3.584,2663.7,2663.2,0.5904]
[1740429715666,3.2078,2663.3,2663.2,0.5904]
[1740429716164,0.75126,2663.2,2663.1,0.0056373]
[1740429716357,3.95905,2663.3,2663.2,0.75126]
[1740429716757,3.2078,2663.3,2663.2,0.75126]
[1740429720562,3.2078,2664.0,2663.2,6.0]
[1740429720769,3.95884,2664.0,2663.8,0.75108]
[1740429720960,3.2078,2664.0,2663.7,3.151]
[1740429721155,3.2078,2664.0,2663.5,0.5325]
[1740429721357,3.2078,2663.6,2663.5,1.28367]
[1740429721662,3.2078,2663.6,2663.5,4.43467]
[1740429722265,3.95894,2663.6,2663.5,3.6835]
[1740429722462,3.2078,2663.6,2663.5,4.43467]
[1740429722665,3.2078,2663.6,2663.5,3.6835]
[1740429722869,3.2078,2663.6,2663.5,4.43467]
[1740429723168,3.2078,2663.6,2663.5,3.6835]